[Event "Titled Tuesday Blitz January 31 Late 2023"]
[White "Kaganskiy, Gleb"]
[Black "Hirneise, Jens"]
[WhiteFideId "4132025"]
[BlackFideId "24614734"]
[WhiteElo "2205"]
[BlackElo "2277"]
[Result "0-1"]
[Round "06"]
[TimeControl "180+2"]
[Date "2023.01.31"]
[WhiteClock "0:00:07"]
[BlackClock "0:00:06"]

1. e4 {[%clk 0:03:00]}  c5 {[%clk 0:02:55]} 2. Nf3 {[%clk 0:02:58]}  e6 {[%clk 0:02:55]} 3. d4 {[%clk 0:02:55]}  cxd4 {[%clk 0:02:56]} 4. Nxd4 {[%clk 0:02:55]}  Nf6 {[%clk 0:02:53]} 5. Nc3 {[%clk 0:02:54]}  d6 {[%clk 0:02:49]} 6. g4 {[%clk 0:02:53]}  h6 {[%clk 0:02:46]} 7. Rg1 {[%clk 0:02:52]}  Be7 {[%clk 0:02:40]} 8. Be3 {[%clk 0:02:49]}  Nc6 {[%clk 0:02:32]} 9. Qd2 {[%clk 0:02:42]}  a6 {[%clk 0:02:19]} 10. O-O-O {[%clk 0:02:41]}  Bd7 {[%clk 0:02:14]} 11. h4 {[%clk 0:02:38]}  Nxd4 {[%clk 0:02:11]} 12. Bxd4 {[%clk 0:02:19]}  e5 {[%clk 0:02:11]} 13. Be3 {[%clk 0:02:03]}  Bxg4 {[%clk 0:02:09]} 14. Be2 {[%clk 0:01:47]}  Bxe2 {[%clk 0:02:05]} 15. Qxe2 {[%clk 0:01:48]}  g6 {[%clk 0:02:03]} 16. f4 {[%clk 0:01:43]}  Qa5 {[%clk 0:02:02]} 17. f5 {[%clk 0:01:36]}  gxf5 {[%clk 0:01:58]} 18. exf5 {[%clk 0:01:35]}  d5 {[%clk 0:01:41]} 19. Bd2 {[%clk 0:01:18]}  d4 {[%clk 0:01:33]} 20. Nb1 {[%clk 0:01:04]}  Qc5 {[%clk 0:01:26]} 21. Rge1 {[%clk 0:01:03]}  e4 {[%clk 0:01:20]} 22. Bf4 {[%clk 0:00:40]}  d3 {[%clk 0:01:07]} 23. Qd2 {[%clk 0:00:30]}  dxc2 {[%clk 0:01:02]} 24. Qxc2 {[%clk 0:00:30]}  Qxf5 {[%clk 0:00:58]} 25. Bd6 {[%clk 0:00:22]}  Bxd6 {[%clk 0:00:49]} 26. Rxd6 {[%clk 0:00:23]}  Qf4+ {[%clk 0:00:49]} 27. Qd2 {[%clk 0:00:22]}  Qxd2+ {[%clk 0:00:45]} 28. Nxd2 {[%clk 0:00:18]}  Ke7 {[%clk 0:00:31]} 29. Rb6 {[%clk 0:00:18]}  Rac8+ {[%clk 0:00:29]} 30. Kb1 {[%clk 0:00:17]}  Rc7 {[%clk 0:00:21]} 31. Nxe4 {[%clk 0:00:17]}  Nxe4 {[%clk 0:00:20]} 32. Rxe4+ {[%clk 0:00:18]}  Kd8 {[%clk 0:00:21]} 33. Rd4+ {[%clk 0:00:18]}  Kc8 {[%clk 0:00:19]} 34. Rdd6 {[%clk 0:00:18]}  Rg8 {[%clk 0:00:16]} 35. a3 {[%clk 0:00:18]}  h5 {[%clk 0:00:14]} 36. Rh6 {[%clk 0:00:18]}  Rc5 {[%clk 0:00:12]} 37. Rbf6 {[%clk 0:00:16]}  Rg7 {[%clk 0:00:11]} 38. Ka2 {[%clk 0:00:15]}  Kd7 {[%clk 0:00:08]} 39. Rb6 {[%clk 0:00:13]}  Kc7 {[%clk 0:00:07]} 40. Rbf6 {[%clk 0:00:13]}  Kb8 {[%clk 0:00:07]} 41. Rh8+ {[%clk 0:00:13]}  Ka7 {[%clk 0:00:07]} 42. Rf8 {[%clk 0:00:12]}  Rc4 {[%clk 0:00:06]} 43. R8xf7 {[%clk 0:00:12]}  Rxf7 {[%clk 0:00:06]} 44. Rxf7 {[%clk 0:00:13]}  Rxh4 {[%clk 0:00:07]} 45. Rh7 {[%clk 0:00:13]}  Rh2 {[%clk 0:00:06]} 46. Rh6 {[%clk 0:00:13]}  h4 {[%clk 0:00:05]} 47. a4 {[%clk 0:00:13]}  h3 {[%clk 0:00:02]} 48. Kb1 {[%clk 0:00:11]}  Kb8 {[%clk 0:00:03]} 49. b3 {[%clk 0:00:09]}  Rh1+ {[%clk 0:00:03]} 50. Kb2 {[%clk 0:00:09]}  h2 {[%clk 0:00:03]} 51. Ka2 {[%clk 0:00:09]}  Kc8 {[%clk 0:00:03]} 52. Kb2 {[%clk 0:00:09]}  Kd7 {[%clk 0:00:02]} 53. Rh7+ {[%clk 0:00:09]}  Ke6 {[%clk 0:00:02]} 54. Ka2 {[%clk 0:00:09]}  Kf6 {[%clk 0:00:02]} 55. Rh6+ {[%clk 0:00:09]}  Kg5 {[%clk 0:00:02]} 56. Rh8 {[%clk 0:00:07]}  Kf4 {[%clk 0:00:02]} 57. Rf8+ {[%clk 0:00:07]}  Ke3 {[%clk 0:00:03]} 58. Rh8 {[%clk 0:00:06]}  Kd4 {[%clk 0:00:03]} 59. Rh7 {[%clk 0:00:05]}  b5 {[%clk 0:00:03]} 60. axb5 {[%clk 0:00:05]}  axb5 {[%clk 0:00:04]} 61. Kb2 {[%clk 0:00:05]}  b4 {[%clk 0:00:03]} 62. Rh4+ {[%clk 0:00:05]}  Kd3 {[%clk 0:00:03]} 63. Rh5 {[%clk 0:00:05]}  Re1 {[%clk 0:00:03]} 64. Rxh2 {[%clk 0:00:05]}  Re2+ {[%clk 0:00:03]} 65. Rxe2 {[%clk 0:00:04]}  Kxe2 {[%clk 0:00:04]} 66. Kc2 {[%clk 0:00:05]}  Ke3 {[%clk 0:00:04]} 67. Kb2 {[%clk 0:00:01]}  Kd2 {[%clk 0:00:04]} 68. Kb1 {[%clk 0:00:01]}  Kc3 {[%clk 0:00:04]} 69. Ka2 {[%clk 0:00:02]}  Kc2 {[%clk 0:00:04]} 70. Ka1 {[%clk 0:00:03]}  Kxb3 {[%clk 0:00:04]} 71. Kb1 {[%clk 0:00:04]}  Ka3 {[%clk 0:00:04]} 72. Kc1 {[%clk 0:00:05]}  Ka2 {[%clk 0:00:04]} 73. Kc2 {[%clk 0:00:05]}  b3+ {[%clk 0:00:05]} 74. Kc3 {[%clk 0:00:06]}  b2 {[%clk 0:00:06]} 75. Kd2 {[%clk 0:00:07]}  b1=Q {[%clk 0:00:06]} 0-1


[Site "https://www.chess.com"]

[Event "Titled Tuesday Blitz January 31 Late 2023"]
[White "Defend, Balint"]
[Black "Richterova, Natasa"]
[WhiteFideId "17004853"]
[BlackFideId "350591"]
[WhiteElo "1673"]
[BlackElo "2191"]
[Result "1-0"]
[Round "06"]
[TimeControl "180+2"]
[Date "2023.01.31"]
[WhiteClock "0:01:39"]
[BlackClock "0:00:09"]

1. e4 {[%clk 0:03:00]}  Nf6 {[%clk 0:03:00]} 2. e5 {[%clk 0:03:00]}  Nd5 {[%clk 0:03:00]} 3. c4 {[%clk 0:02:59]}  Nb6 {[%clk 0:03:00]} 4. d4 {[%clk 0:02:59]}  d6 {[%clk 0:03:01]} 5. exd6 {[%clk 0:03:00]}  cxd6 {[%clk 0:02:57]} 6. Nc3 {[%clk 0:02:58]}  g6 {[%clk 0:02:56]} 7. Be3 {[%clk 0:02:58]}  Bg7 {[%clk 0:02:57]} 8. Rc1 {[%clk 0:02:57]}  O-O {[%clk 0:02:57]} 9. b3 {[%clk 0:02:57]}  Bf5 {[%clk 0:02:57]} 10. h3 {[%clk 0:02:55]}  e5 {[%clk 0:02:55]} 11. dxe5 {[%clk 0:02:52]}  dxe5 {[%clk 0:02:56]} 12. Nf3 {[%clk 0:02:51]}  Qxd1+ {[%clk 0:02:56]} 13. Rxd1 {[%clk 0:02:52]}  Nc6 {[%clk 0:02:55]} 14. Be2 {[%clk 0:02:50]}  Rad8 {[%clk 0:02:53]} 15. Bc5 {[%clk 0:02:44]}  Rfe8 {[%clk 0:02:47]} 16. Bxb6 {[%clk 0:02:25]}  Rxd1+ {[%clk 0:02:41]} 17. Bxd1 {[%clk 0:02:21]}  e4 {[%clk 0:02:01]} 18. Be3 {[%clk 0:02:17]}  exf3 {[%clk 0:01:51]} 19. Nd5 {[%clk 0:02:16]}  fxg2 {[%clk 0:01:48]} 20. Rg1 {[%clk 0:02:15]}  Bxh3 {[%clk 0:01:22]} 21. Bf3 {[%clk 0:02:14]}  Nd4 {[%clk 0:00:56]} 22. Bxg2 {[%clk 0:02:10]}  Bxg2 {[%clk 0:00:55]} 23. Rxg2 {[%clk 0:02:11]}  Nc2+ {[%clk 0:00:46]} 24. Ke2 {[%clk 0:02:11]}  Nxe3 {[%clk 0:00:46]} 25. fxe3 {[%clk 0:02:12]}  b6 {[%clk 0:00:42]} 26. Kf3 {[%clk 0:02:11]}  f5 {[%clk 0:00:41]} 27. a4 {[%clk 0:02:10]}  Kf7 {[%clk 0:00:41]} 28. Ra2 {[%clk 0:02:09]}  Rd8 {[%clk 0:00:35]} 29. a5 {[%clk 0:02:09]}  b5 {[%clk 0:00:35]} 30. a6 {[%clk 0:02:08]}  bxc4 {[%clk 0:00:32]} 31. bxc4 {[%clk 0:02:08]}  Rc8 {[%clk 0:00:32]} 32. Ra4 {[%clk 0:02:06]}  Rc5 {[%clk 0:00:29]} 33. Rb4 {[%clk 0:02:03]}  Be5 {[%clk 0:00:15]} 34. Rb7+ {[%clk 0:02:02]}  Ke6 {[%clk 0:00:15]} 35. Rxa7 {[%clk 0:01:45]}  Rxc4 {[%clk 0:00:15]} 36. Nb6 {[%clk 0:01:45]}  Rb4 {[%clk 0:00:15]} 37. Rb7 {[%clk 0:01:44]}  Bc7 {[%clk 0:00:12]} 38. a7 {[%clk 0:01:40]}  Ra4 {[%clk 0:00:09]} 39. Nxa4 {[%clk 0:01:39]} 1-0


[Site "https://www.chess.com"]

[Event "Titled Tuesday Blitz January 31 Late 2023"]
[White "Dourerassou, Jonathan"]
[Black "Deviprasath, Sharvesh"]
[WhiteFideId "628050"]
[BlackFideId "30938228"]
[WhiteElo "2414"]
[BlackElo "2296"]
[Result "1-0"]
[Round "06"]
[TimeControl "180+2"]
[Date "2023.01.31"]
[WhiteClock "0:01:28"]
[BlackClock "0:00:13"]

1. d4 {[%clk 0:02:57]}  d5 {[%clk 0:02:38]} 2. Nf3 {[%clk 0:02:56]}  e6 {[%clk 0:02:35]} 3. Bf4 {[%clk 0:02:55]}  c5 {[%clk 0:02:35]} 4. c3 {[%clk 0:02:54]}  Nf6 {[%clk 0:02:35]} 5. h3 {[%clk 0:02:53]}  Nc6 {[%clk 0:02:30]} 6. e3 {[%clk 0:02:53]}  Bd6 {[%clk 0:02:22]} 7. Ne5 {[%clk 0:02:51]}  O-O {[%clk 0:02:21]} 8. Nd2 {[%clk 0:02:50]}  Ne8 {[%clk 0:02:10]} 9. Bd3 {[%clk 0:02:46]}  f6 {[%clk 0:01:57]} 10. Qh5 {[%clk 0:02:29]}  f5 {[%clk 0:01:36]} 11. Ndf3 {[%clk 0:02:18]}  Be7 {[%clk 0:01:24]} 12. Nxc6 {[%clk 0:02:04]}  bxc6 {[%clk 0:00:17]} 13. Ne5 {[%clk 0:02:02]}  Qb6 {[%clk 0:00:16]} 14. Qe2 {[%clk 0:01:56]}  cxd4 {[%clk 0:00:14]} 15. exd4 {[%clk 0:01:55]}  c5 {[%clk 0:00:15]} 16. dxc5 {[%clk 0:01:53]}  Bxc5 {[%clk 0:00:15]} 17. O-O {[%clk 0:01:53]}  Nf6 {[%clk 0:00:10]} 18. b4 {[%clk 0:01:47]}  Bd6 {[%clk 0:00:11]} 19. a3 {[%clk 0:01:45]}  Qc7 {[%clk 0:00:10]} 20. Rac1 {[%clk 0:01:43]}  Ne4 {[%clk 0:00:09]} 21. c4 {[%clk 0:01:43]}  Bxe5 {[%clk 0:00:08]} 22. cxd5 {[%clk 0:01:42]}  Qd6 {[%clk 0:00:08]} 23. Bxe5 {[%clk 0:01:38]}  Qxe5 {[%clk 0:00:09]} 24. dxe6 {[%clk 0:01:39]}  Bxe6 {[%clk 0:00:10]} 25. Rfe1 {[%clk 0:01:33]}  Qd4 {[%clk 0:00:09]} 26. Bxe4 {[%clk 0:01:29]}  fxe4 {[%clk 0:00:10]} 27. Qxe4 {[%clk 0:01:29]}  Qxf2+ {[%clk 0:00:10]} 28. Kh2 {[%clk 0:01:29]}  Rae8 {[%clk 0:00:08]} 29. Rf1 {[%clk 0:01:28]}  Qxf1 {[%clk 0:00:07]} 30. Rxf1 {[%clk 0:01:29]}  Rxf1 {[%clk 0:00:07]} 31. Qb7 {[%clk 0:01:29]}  Rf7 {[%clk 0:00:07]} 32. Qc6 {[%clk 0:01:28]}  Kf8 {[%clk 0:00:07]} 33. Qc5+ {[%clk 0:01:28]}  Kg8 {[%clk 0:00:07]} 34. Qc6 {[%clk 0:01:28]}  Rfe7 {[%clk 0:00:08]} 35. b5 {[%clk 0:01:27]}  g6 {[%clk 0:00:09]} 36. a4 {[%clk 0:01:27]}  Kg7 {[%clk 0:00:09]} 37. a5 {[%clk 0:01:28]}  Rc8 {[%clk 0:00:09]} 38. Qd6 {[%clk 0:01:27]}  Kf7 {[%clk 0:00:10]} 39. Qf4+ {[%clk 0:01:27]}  Kg7 {[%clk 0:00:10]} 40. Qd4+ {[%clk 0:01:28]}  Kg8 {[%clk 0:00:10]} 41. Qd6 {[%clk 0:01:28]}  Rcc7 {[%clk 0:00:11]} 42. Qd8+ {[%clk 0:01:28]}  Kg7 {[%clk 0:00:10]} 43. b6 {[%clk 0:01:29]}  axb6 {[%clk 0:00:11]} 44. axb6 {[%clk 0:01:30]}  Rb7 {[%clk 0:00:11]} 45. Qd4+ {[%clk 0:01:30]}  Kf7 {[%clk 0:00:11]} 46. Qf4+ {[%clk 0:01:30]}  Ke8 {[%clk 0:00:12]} 47. Qd6 {[%clk 0:01:30]}  Bf5 {[%clk 0:00:11]} 48. Qc6+ {[%clk 0:01:30]}  Kf7 {[%clk 0:00:11]} 49. Qd5+ {[%clk 0:01:30]}  Kg7 {[%clk 0:00:12]} 50. Qd4+ {[%clk 0:01:31]}  Kh6 {[%clk 0:00:12]} 51. g4 {[%clk 0:01:29]}  Be6 {[%clk 0:00:13]} 52. Kg3 {[%clk 0:01:29]}  g5 {[%clk 0:00:13]} 53. Qf6# {[%clk 0:01:28]} 1-0


[Site "https://www.chess.com"]

[Event "Titled Tuesday Blitz January 31 Late 2023"]
[White "Blit, Jacques"]
[Black "Estrada Nieto, Julian"]
[WhiteFideId "114839"]
[BlackFideId "5101018"]
[WhiteElo "2309"]
[BlackElo "2215"]
[Result "0-1"]
[Round "06"]
[TimeControl "180+2"]
[Date "2023.01.31"]
[WhiteClock "0:00:12"]
[BlackClock "0:00:09"]

1. e4 {[%clk 0:02:59]}  e5 {[%clk 0:02:59]} 2. Nc3 {[%clk 0:02:58]}  Nf6 {[%clk 0:02:59]} 3. Nf3 {[%clk 0:02:58]}  Nc6 {[%clk 0:02:59]} 4. d4 {[%clk 0:02:58]}  exd4 {[%clk 0:02:58]} 5. Nxd4 {[%clk 0:02:59]}  Bb4 {[%clk 0:02:59]} 6. Nxc6 {[%clk 0:02:59]}  bxc6 {[%clk 0:03:00]} 7. Bd3 {[%clk 0:02:59]}  d5 {[%clk 0:03:00]} 8. exd5 {[%clk 0:03:00]}  O-O {[%clk 0:03:00]} 9. O-O {[%clk 0:03:00]}  cxd5 {[%clk 0:03:00]} 10. Bg5 {[%clk 0:03:00]}  c6 {[%clk 0:03:01]} 11. Qf3 {[%clk 0:03:00]}  Bd6 {[%clk 0:03:00]} 12. Ne2 {[%clk 0:02:57]}  Rb8 {[%clk 0:02:56]} 13. Nd4 {[%clk 0:02:51]}  Bd7 {[%clk 0:02:56]} 14. Bf5 {[%clk 0:02:45]}  Be5 {[%clk 0:02:48]} 15. Bxd7 {[%clk 0:02:31]}  Qxd7 {[%clk 0:02:47]} 16. Nf5 {[%clk 0:02:31]}  Ne4 {[%clk 0:02:20]} 17. Bc1 {[%clk 0:02:25]}  Kh8 {[%clk 0:02:10]} 18. Rd1 {[%clk 0:02:18]}  Rfe8 {[%clk 0:02:04]} 19. c3 {[%clk 0:02:03]}  Nd6 {[%clk 0:01:55]} 20. Ne3 {[%clk 0:01:55]}  f5 {[%clk 0:01:46]} 21. c4 {[%clk 0:01:47]}  d4 {[%clk 0:01:44]} 22. c5 {[%clk 0:01:48]}  dxe3 {[%clk 0:01:38]} 23. Bxe3 {[%clk 0:01:47]}  f4 {[%clk 0:01:12]} 24. Bd4 {[%clk 0:01:32]}  Bxd4 {[%clk 0:01:08]} 25. Rxd4 {[%clk 0:01:33]}  Re6 {[%clk 0:01:07]} 26. Rad1 {[%clk 0:01:29]}  Qe7 {[%clk 0:01:06]} 27. h3 {[%clk 0:01:07]}  Nb5 {[%clk 0:01:06]} 28. Rd7 {[%clk 0:00:58]}  Qxc5 {[%clk 0:01:05]} 29. Qxf4 {[%clk 0:00:47]}  Rf8 {[%clk 0:00:52]} 30. Rf7 {[%clk 0:00:45]}  Rf6 {[%clk 0:00:40]} 31. Rxf6 {[%clk 0:00:37]}  gxf6 {[%clk 0:00:38]} 32. Rd7 {[%clk 0:00:37]}  Qg5 {[%clk 0:00:30]} 33. Qxg5 {[%clk 0:00:37]}  fxg5 {[%clk 0:00:29]} 34. a4 {[%clk 0:00:38]}  a5 {[%clk 0:00:20]} 35. axb5 {[%clk 0:00:37]}  cxb5 {[%clk 0:00:20]} 36. Rd5 {[%clk 0:00:37]}  Rb8 {[%clk 0:00:20]} 37. Rxg5 {[%clk 0:00:37]}  a4 {[%clk 0:00:20]} 38. g4 {[%clk 0:00:19]}  b4 {[%clk 0:00:20]} 39. Ra5 {[%clk 0:00:19]}  a3 {[%clk 0:00:21]} 40. b3 {[%clk 0:00:18]}  Rd8 {[%clk 0:00:16]} 41. Ra4 {[%clk 0:00:14]}  Rd3 {[%clk 0:00:15]} 42. Kg2 {[%clk 0:00:11]}  Rxb3 {[%clk 0:00:14]} 43. Ra7 {[%clk 0:00:11]}  Rb2 {[%clk 0:00:13]} 44. h4 {[%clk 0:00:11]}  a2 {[%clk 0:00:13]} 45. h5 {[%clk 0:00:12]}  h6 {[%clk 0:00:12]} 46. Kg3 {[%clk 0:00:10]}  b3 {[%clk 0:00:11]} 47. f4 {[%clk 0:00:10]}  Rb1 {[%clk 0:00:12]} 48. Rxa2 {[%clk 0:00:11]}  bxa2 {[%clk 0:00:11]} 49. g5 {[%clk 0:00:11]}  a1=Q {[%clk 0:00:11]} 50. Kg4 {[%clk 0:00:12]}  Qd4 {[%clk 0:00:10]} 51. Kf5 {[%clk 0:00:12]}  Rf1 {[%clk 0:00:10]} 52. Kg6 {[%clk 0:00:12]}  hxg5 {[%clk 0:00:09]} 53. f5 {[%clk 0:00:12]}  Qe4 {[%clk 0:00:09]} 54. h6 {[%clk 0:00:12]}  Qxf5+ {[%clk 0:00:09]} 0-1


[Site "https://www.chess.com"]

[Event "Titled Tuesday Blitz January 31 Late 2023"]
[White "Koellner, Ruben Gideon"]
[Black "Buchenau, Frank"]
[WhiteFideId "12993093"]
[BlackFideId "4604350"]
[WhiteElo "2426"]
[BlackElo "2222"]
[Result "1-0"]
[Round "06"]
[TimeControl "180+2"]
[Date "2023.01.31"]
[WhiteClock "0:00:31"]
[BlackClock "0:00:08"]

1. d4 {[%clk 0:02:57]}  e6 {[%clk 0:02:59]} 2. Nf3 {[%clk 0:02:57]}  Nf6 {[%clk 0:03:00]} 3. Nbd2 {[%clk 0:02:57]}  c5 {[%clk 0:02:58]} 4. e3 {[%clk 0:02:57]}  b6 {[%clk 0:02:58]} 5. c3 {[%clk 0:02:55]}  Bb7 {[%clk 0:02:57]} 6. Bd3 {[%clk 0:02:55]}  d5 {[%clk 0:02:55]} 7. Ne5 {[%clk 0:02:54]}  Be7 {[%clk 0:02:46]} 8. f4 {[%clk 0:02:53]}  O-O {[%clk 0:02:45]} 9. Qf3 {[%clk 0:02:53]}  a5 {[%clk 0:02:28]} 10. g4 {[%clk 0:02:46]}  Ba6 {[%clk 0:02:27]} 11. Bc2 {[%clk 0:02:46]}  Ne8 {[%clk 0:02:17]} 12. g5 {[%clk 0:02:34]}  Nd6 {[%clk 0:02:13]} 13. Qh3 {[%clk 0:02:30]}  Nf5 {[%clk 0:02:11]} 14. Bxf5 {[%clk 0:02:20]}  exf5 {[%clk 0:02:11]} 15. Qxf5 {[%clk 0:02:21]}  Qc8 {[%clk 0:01:58]} 16. Qxc8 {[%clk 0:02:21]}  Rxc8 {[%clk 0:01:57]} 17. Ndf3 {[%clk 0:02:19]}  Nc6 {[%clk 0:01:53]} 18. Nxc6 {[%clk 0:02:18]}  Rxc6 {[%clk 0:01:53]} 19. Ne5 {[%clk 0:02:18]}  Re6 {[%clk 0:01:35]} 20. f5 {[%clk 0:02:09]}  Rd6 {[%clk 0:01:32]} 21. h4 {[%clk 0:02:09]}  f6 {[%clk 0:01:27]} 22. Nf3 {[%clk 0:02:05]}  Bd3 {[%clk 0:01:22]} 23. b3 {[%clk 0:01:40]}  Bxf5 {[%clk 0:01:18]} 24. Ba3 {[%clk 0:01:39]}  Re6 {[%clk 0:01:17]} 25. Kd2 {[%clk 0:01:38]}  Re8 {[%clk 0:01:03]} 26. Rhf1 {[%clk 0:01:32]}  Bh3 {[%clk 0:00:58]} 27. Rfe1 {[%clk 0:01:17]}  cxd4 {[%clk 0:00:53]} 28. Bxe7 {[%clk 0:01:16]}  dxc3+ {[%clk 0:00:50]} 29. Kxc3 {[%clk 0:01:17]}  R8xe7 {[%clk 0:00:48]} 30. Kd2 {[%clk 0:01:17]}  Bg4 {[%clk 0:00:32]} 31. Nd4 {[%clk 0:01:16]}  Re4 {[%clk 0:00:32]} 32. gxf6 {[%clk 0:01:12]}  gxf6 {[%clk 0:00:32]} 33. Rac1 {[%clk 0:01:12]}  h5 {[%clk 0:00:21]} 34. Rc6 {[%clk 0:01:11]}  f5 {[%clk 0:00:13]} 35. Rxb6 {[%clk 0:00:47]}  f4 {[%clk 0:00:13]} 36. Nc2 {[%clk 0:00:47]}  f3 {[%clk 0:00:12]} 37. Rf1 {[%clk 0:00:47]}  Rc7 {[%clk 0:00:10]} 38. Nd4 {[%clk 0:00:43]}  Rce7 {[%clk 0:00:09]} 39. Nxf3 {[%clk 0:00:32]}  Rxe3 {[%clk 0:00:08]} 40. Ng5 {[%clk 0:00:32]}  Re2+ {[%clk 0:00:08]} 41. Kc3 {[%clk 0:00:31]} 1-0


[Site "https://www.chess.com"]

[Event "Titled Tuesday Blitz January 31 Late 2023"]
[White "Korchmar, Vasiliy"]
[Black "Necromon"]
[WhiteFideId "24131750"]
[WhiteElo "2438"]
[BlackElo "2420"]
[Result "1-0"]
[Round "06"]
[TimeControl "180+2"]
[Date "2023.01.31"]
[WhiteClock "0:00:03"]
[BlackClock "0:01:02"]

1. e4 {[%clk 0:02:55]}  c5 {[%clk 0:02:59]} 2. Nf3 {[%clk 0:02:54]}  Nc6 {[%clk 0:02:59]} 3. d4 {[%clk 0:02:54]}  cxd4 {[%clk 0:02:59]} 4. Nxd4 {[%clk 0:02:55]}  g6 {[%clk 0:03:00]} 5. Nc3 {[%clk 0:02:46]}  Bg7 {[%clk 0:02:59]} 6. Be3 {[%clk 0:02:47]}  Nf6 {[%clk 0:02:59]} 7. Nxc6 {[%clk 0:01:57]}  bxc6 {[%clk 0:02:58]} 8. Bd3 {[%clk 0:01:57]}  d6 {[%clk 0:02:58]} 9. O-O {[%clk 0:01:57]}  O-O {[%clk 0:02:58]} 10. a4 {[%clk 0:01:56]}  c5 {[%clk 0:02:55]} 11. a5 {[%clk 0:01:55]}  Be6 {[%clk 0:02:54]} 12. a6 {[%clk 0:01:52]}  Qb6 {[%clk 0:02:51]} 13. Qd2 {[%clk 0:01:47]}  Nd7 {[%clk 0:02:36]} 14. Bh6 {[%clk 0:01:30]}  Bxh6 {[%clk 0:02:34]} 15. Qxh6 {[%clk 0:01:31]}  Qxb2 {[%clk 0:02:34]} 16. Qd2 {[%clk 0:01:24]}  Qb4 {[%clk 0:02:28]} 17. Rfb1 {[%clk 0:01:21]}  Qd4 {[%clk 0:02:28]} 18. Nb5 {[%clk 0:00:56]}  Qf6 {[%clk 0:02:23]} 19. Nc7 {[%clk 0:00:48]}  Rac8 {[%clk 0:02:20]} 20. Nxe6 {[%clk 0:00:48]}  Qxe6 {[%clk 0:02:19]} 21. Rb7 {[%clk 0:00:48]}  c4 {[%clk 0:02:16]} 22. Be2 {[%clk 0:00:45]}  Nc5 {[%clk 0:02:12]} 23. Rxa7 {[%clk 0:00:44]}  Nxe4 {[%clk 0:02:12]} 24. Qe3 {[%clk 0:00:44]}  Ra8 {[%clk 0:02:07]} 25. Rxa8 {[%clk 0:00:37]}  Rxa8 {[%clk 0:02:06]} 26. f3 {[%clk 0:00:30]}  Qf6 {[%clk 0:02:03]} 27. Ra3 {[%clk 0:00:25]}  Nc5 {[%clk 0:02:00]} 28. Bxc4 {[%clk 0:00:25]}  Qb2 {[%clk 0:01:53]} 29. Qxe7 {[%clk 0:00:10]}  Qc1+ {[%clk 0:01:39]} 30. Kf2 {[%clk 0:00:10]}  Qxc2+ {[%clk 0:01:36]} 31. Qe2 {[%clk 0:00:04]}  Qc1 {[%clk 0:01:36]} 32. Re3 {[%clk 0:00:02]}  Rf8 {[%clk 0:01:31]} 33. Re7 {[%clk 0:00:02]}  Qc3 {[%clk 0:01:30]} 34. a7 {[%clk 0:00:02]}  Qd4+ {[%clk 0:01:25]} 35. Kg3 {[%clk 0:00:03]}  g5 {[%clk 0:01:24]} 36. h3 {[%clk 0:00:02]}  Qf4+ {[%clk 0:01:23]} 37. Kf2 {[%clk 0:00:03]}  Qd4+ {[%clk 0:01:23]} 38. Kg3 {[%clk 0:00:03]}  Qf4+ {[%clk 0:01:23]} 39. Kf2 {[%clk 0:00:04]}  Qd4+ {[%clk 0:01:24]} 40. Kf1 {[%clk 0:00:05]}  Qa1+ {[%clk 0:01:20]} 41. Qe1 {[%clk 0:00:05]}  Qd4 {[%clk 0:01:19]} 42. Bxf7+ {[%clk 0:00:02]}  Kh8 {[%clk 0:01:17]} 43. Qf2 {[%clk 0:00:01]}  Qa1+ {[%clk 0:01:07]} 44. Qe1 {[%clk 0:00:02]}  Qd4 {[%clk 0:01:06]} 45. Re8 {[%clk 0:00:02]}  Qd3+ {[%clk 0:01:04]} 46. Kg1 {[%clk 0:00:03]}  Qd4+ {[%clk 0:01:03]} 47. Kh1 {[%clk 0:00:03]}  Kg7 {[%clk 0:01:01]} 48. Rxf8 {[%clk 0:00:03]}  Kxf8 {[%clk 0:01:01]} 49. a8=Q+ {[%clk 0:00:04]}  Kxf7 {[%clk 0:01:02]} 50. Qae8+ {[%clk 0:00:04]}  Kg7 {[%clk 0:01:02]} 51. Q1e7+ {[%clk 0:00:03]} 1-0


[Site "https://www.chess.com"]

[Event "Titled Tuesday Blitz January 31 Late 2023"]
[White "Machidon, Cristi"]
[Black "Ansh M Shah"]
[WhiteFideId "13904590"]
[BlackFideId "25033379"]
[WhiteElo "2301"]
[BlackElo "2171"]
[Result "1/2-1/2"]
[Round "06"]
[TimeControl "180+2"]
[Date "2023.01.31"]
[WhiteClock "0:00:10"]
[BlackClock "0:00:19"]

1. b3 {[%clk 0:03:00]}  Nf6 {[%clk 0:03:00]} 2. Bb2 {[%clk 0:03:01]}  c5 {[%clk 0:03:00]} 3. e3 {[%clk 0:03:01]}  b6 {[%clk 0:03:01]} 4. c4 {[%clk 0:03:01]}  Bb7 {[%clk 0:03:01]} 5. Nf3 {[%clk 0:03:01]}  e6 {[%clk 0:03:01]} 6. Nc3 {[%clk 0:03:00]}  d5 {[%clk 0:03:01]} 7. cxd5 {[%clk 0:03:01]}  exd5 {[%clk 0:03:01]} 8. d4 {[%clk 0:03:01]}  Nbd7 {[%clk 0:03:00]} 9. Bd3 {[%clk 0:03:00]}  Be7 {[%clk 0:03:00]} 10. O-O {[%clk 0:03:00]}  O-O {[%clk 0:03:00]} 11. Rc1 {[%clk 0:03:00]}  Rc8 {[%clk 0:03:00]} 12. Qe2 {[%clk 0:03:01]}  Ne4 {[%clk 0:03:00]} 13. Rfd1 {[%clk 0:02:57]}  Qc7 {[%clk 0:02:59]} 14. dxc5 {[%clk 0:02:46]}  Ndxc5 {[%clk 0:02:59]} 15. Bb1 {[%clk 0:02:45]}  Qb8 {[%clk 0:02:56]} 16. Nxd5 {[%clk 0:02:42]}  Bxd5 {[%clk 0:02:55]} 17. Rxd5 {[%clk 0:02:42]}  Bf6 {[%clk 0:02:55]} 18. b4 {[%clk 0:02:26]}  Bxb2 {[%clk 0:02:53]} 19. Qxb2 {[%clk 0:02:20]}  Na4 {[%clk 0:02:41]} 20. Qa3 {[%clk 0:02:20]}  Rxc1+ {[%clk 0:02:31]} 21. Qxc1 {[%clk 0:02:21]}  Rc8 {[%clk 0:02:31]} 22. Qe1 {[%clk 0:02:02]}  Nac3 {[%clk 0:01:56]} 23. Bxe4 {[%clk 0:01:42]}  Nxe4 {[%clk 0:01:54]} 24. h3 {[%clk 0:01:36]}  h6 {[%clk 0:01:48]} 25. Rd4 {[%clk 0:01:28]}  Qb7 {[%clk 0:01:44]} 26. Qd1 {[%clk 0:01:23]}  Qc6 {[%clk 0:01:15]} 27. Kh2 {[%clk 0:01:15]}  Nxf2 {[%clk 0:01:04]} 28. Rd8+ {[%clk 0:00:56]}  Rxd8 {[%clk 0:01:02]} 29. Qxd8+ {[%clk 0:00:57]}  Kh7 {[%clk 0:01:02]} 30. Qd4 {[%clk 0:00:47]}  Ne4 {[%clk 0:00:55]} 31. Ne5 {[%clk 0:00:47]}  Qb7 {[%clk 0:00:37]} 32. Nxf7 {[%clk 0:00:40]}  Nf6 {[%clk 0:00:20]} 33. Ne5 {[%clk 0:00:38]}  Qc7 {[%clk 0:00:20]} 34. Qd3+ {[%clk 0:00:31]}  Kg8 {[%clk 0:00:20]} 35. Qc4+ {[%clk 0:00:30]}  Qxc4 {[%clk 0:00:20]} 36. Nxc4 {[%clk 0:00:31]}  Nd5 {[%clk 0:00:20]} 37. a3 {[%clk 0:00:30]}  b5 {[%clk 0:00:20]} 38. Nd6 {[%clk 0:00:29]}  a6 {[%clk 0:00:20]} 39. e4 {[%clk 0:00:28]}  Ne3 {[%clk 0:00:17]} 40. Kg3 {[%clk 0:00:22]}  Nc2 {[%clk 0:00:17]} 41. e5 {[%clk 0:00:21]}  Kf8 {[%clk 0:00:16]} 42. Kf4 {[%clk 0:00:21]}  Nxa3 {[%clk 0:00:15]} 43. e6 {[%clk 0:00:20]}  Ke7 {[%clk 0:00:15]} 44. Nf5+ {[%clk 0:00:16]}  Kxe6 {[%clk 0:00:15]} 45. Nxg7+ {[%clk 0:00:16]}  Kf6 {[%clk 0:00:16]} 46. Nf5 {[%clk 0:00:16]}  Kg6 {[%clk 0:00:16]} 47. g4 {[%clk 0:00:14]}  Nc2 {[%clk 0:00:16]} 48. h4 {[%clk 0:00:14]}  Nxb4 {[%clk 0:00:15]} 49. h5+ {[%clk 0:00:14]}  Kh7 {[%clk 0:00:16]} 50. Nd4 {[%clk 0:00:13]}  Nd5+ {[%clk 0:00:16]} 51. Ke5 {[%clk 0:00:13]}  Ne3 {[%clk 0:00:17]} 52. Kf4 {[%clk 0:00:13]}  Nc4 {[%clk 0:00:17]} 53. Ke4 {[%clk 0:00:11]}  Nd6+ {[%clk 0:00:16]} 54. Kd5 {[%clk 0:00:11]}  Nc4 {[%clk 0:00:15]} 55. Kc5 {[%clk 0:00:10]}  Ne3 {[%clk 0:00:16]} 56. Kb6 {[%clk 0:00:09]}  Nxg4 {[%clk 0:00:17]} 57. Kxa6 {[%clk 0:00:10]}  b4 {[%clk 0:00:17]} 58. Kb5 {[%clk 0:00:09]}  b3 {[%clk 0:00:17]} 59. Nxb3 {[%clk 0:00:10]}  Nf6 {[%clk 0:00:18]} 60. Nd4 {[%clk 0:00:10]}  Nxh5 {[%clk 0:00:19]} 61. Nf5 {[%clk 0:00:10]}  Nf6 {[%clk 0:00:19]} 62. Nxh6 {[%clk 0:00:10]} 1/2-1/2


[Site "https://www.chess.com"]